fUSD/lending_fUSD_20260108
["ID","MTS","AMOUNT","RATE_DAILY","PERIOD"]
[400945844,1767868244905,-912.45872532,0.0001531,2]
[400945846,1767868244914,-1000.0,0.0001531,2]
[400945848,1767868244923,-712.65120656,0.0001531,2]
[400945850,1767868244932,-1000.0,0.0001531,2]
[400945852,1767868244942,-415.93260674,0.0001531,2]
[400945854,1767868244951,-166.61911688,0.0001531,2]
[400945856,1767868244960,-500.44132788,0.0001531,2]
[400945858,1767868244969,-1000.0,0.0001531,2]
[400945860,1767868244979,-1000.0,0.0001531,2]
[400945862,1767868244988,-1000.0,0.0001531,2]
[400945864,1767868244997,-1000.0,0.0001531,2]
[400945866,1767868245007,-1000.0,0.0001531,2]
[400945868,1767868245017,-1000.0,0.0001531,2]
[400945870,1767868245026,-539.89725373,0.0001531,2]
[400945872,1767868245035,-237.35203595,0.0001531,2]
[400945874,1767868245044,-1000.0,0.0001531,2]
[400945876,1767868245054,-438.84534231,0.0001531,2]
[400945878,1767868245063,-332.64752003,0.0001531,2]
[400945880,1767868245072,-1000.0,0.0001531,2]
[400945882,1767868245082,-503.33948311,0.0001531,2]
[400945884,1767868245092,-1000.0,0.0001531,2]
[400945886,1767868245101,-1000.0,0.0001531,2]
[400945889,1767868245110,-1000.0,0.0001531,2]
[400945891,1767868245120,-1000.0,0.0001531,2]
[400945893,1767868245129,-1000.0,0.0001531,2]
[400945895,1767868245138,-1000.0,0.0001531,2]
[400945897,1767868245147,-500.3780208,0.0001531,2]
[400945899,1767868245156,-1000.0,0.0001531,2]
[400945901,1767868245165,-1000.0,0.0001531,2]
[400945903,1767868245174,-1000.0,0.0001531,2]
[400945905,1767868245184,-812.00908556,0.0001531,2]
[400945907,1767868245193,-1000.0,0.0001531,2]
[400945909,1767868245202,-2040.63,0.00015394,2]
[400945911,1767868245212,-642.94,0.00015398,2]
[400945913,1767868245221,-334.5472959,0.00015398,2]
[400945915,1767868245230,-150.0,0.00015423,2]
[400945917,1767868245239,-312.84,0.00015504,2]
[400945919,1767868245248,-150.0,0.00015603,2]
[400945921,1767868245257,-2040.63,0.00015668,2]
[400945923,1767868245266,-200.0,0.0001567,2]
[400945925,1767868245275,-200.0,0.0001567,2]
[400945927,1767868245285,-175.29912762,0.00015673,2]
[400945929,1767868245294,-233.51889341,0.00015673,2]
[400945931,1767868245303,-640.24385345,0.00015673,2]
[400945933,1767868245312,-43813.86057028,0.00015727,2]
[400945935,1767868245324,-925.85,0.0001573,2]
[400945937,1767868245334,-674.54898834,0.00015749,2]
[400945939,1767868245343,-2837.38,0.00015753,2]
[400945940,1767868245352,-2234.25818343,0.00015807,2]
[400945943,1767868245362,-1500.0,0.00015858,2]
[400945944,1767868245371,-1530.62564826,0.00015858,2]
[400945946,1767868245380,-1500.0,0.00015858,2]
[400945948,1767868245389,-822.81176918,0.00015858,2]
[400945950,1767868245399,-985.97149483,0.00015858,2]
[400945952,1767868245408,-556.63084022,0.00015858,2]
[400945954,1767868245417,-1500.0,0.00015858,2]
[400945956,1767868245428,-1500.0,0.00015858,2]
[400945958,1767868245438,-1500.0,0.00015858,2]
[400945960,1767868245447,-1500.0,0.00015858,2]
[400945962,1767868245457,-1009.92734084,0.00015858,2]
[400945964,1767868245466,-1500.0,0.00015858,2]
[400945967,1767868245475,-1500.0,0.00015858,2]
[400945969,1767868245485,-1500.0,0.00015858,2]
[400945970,1767868245495,-1500.0,0.00015858,2]
[400945972,1767868245504,-413.69875704,0.00015858,2]
[400945974,1767868245513,-1001.84542925,0.00015858,2]
[400945976,1767868245523,-1500.0,0.00015858,2]
[400945978,1767868245532,-1511.09296657,0.00015858,2]
[400945980,1767868245542,-1158.23019616,0.00015858,2]
[400945982,1767868245551,-1500.0,0.00015858,2]
[400945984,1767868245560,-1500.0,0.00015858,2]
[400945987,1767868245569,-1500.0,0.00015858,2]
[400945989,1767868245578,-9140.78311227,0.000159,2]
[400945991,1767868245588,-1515.58713171,0.00015915,2]
[400945993,1767868245597,-945.11,0.00015919,2]
[400945995,1767868245606,-1403.26785087,0.00015929,2]
[400945997,1767868245616,-1252.0,0.00015939,2]
[400945999,1767868245625,-2040.63,0.00015942,2]
[400946001,1767868245634,-1561.43224408,0.0001599,2]
[400946003,1767868245646,-200.589792,0.00015997,2]
[400946004,1767868245656,-200.589792,0.00015997,2]
[400946007,1767868245666,-155711.39921715,0.00016,2]
[400946009,1767868245675,-3704149.85178204,0.00016,4]
[400946011,1767868245684,-200.0,0.00016,2]
[400946013,1767868245693,-500.0,0.00016084,2]
[400946015,1767868245703,-150.0,0.00016084,2]
[400946017,1767868245714,-150.0,0.00016084,2]
[400946019,1767868245723,-219193.90637658,0.000161,2]
[400946026,1767868245787,-615.17718564,0.000161,2]
[400946029,1767868245798,-1159.41324796,0.000161,2]
[400946032,1767868245816,-1766.01360598,0.000161,2]
[400946186,1767868247279,-1.7e-07,0.000161,2]
[400946287,1767868248382,-151.0,0.00012052,2]
[400946289,1767868248392,-500.0,0.00013698,2]
[400946291,1767868248411,-500.0,0.00013698,2]
[400946293,1767868248420,-500.0,0.00013698,2]
[400946295,1767868248430,-500.0,0.00013698,2]
[400946297,1767868248440,-500.0,0.00013698,2]
[400946299,1767868248449,-500.0,0.00013698,2]
[400946301,1767868248458,-500.0,0.00013698,2]
[400946303,1767868248468,-399.0,0.00013698,2]
[400946389,1767868249267,-182.02591241,0.00013698,2]
[400946391,1767868249276,-429.86452012,0.00013698,2]
[400946395,1767868249306,-70.13547988,0.00013698,2]
[400946397,1767868249315,-500.0,0.00013698,2]
[400946399,1767868249328,-500.0,0.00013698,2]
[400946401,1767868249337,-500.0,0.00013698,2]
[400946403,1767868249346,-500.0,0.00013698,2]
[400946404,1767868249357,-500.0,0.00013698,2]
[400946407,1767868249367,-500.0,0.00014603,2]
[400946409,1767868249376,-500.0,0.00014603,2]
[400946411,1767868249385,-363.73176274,0.00014603,2]
[400946413,1767868249394,-574.03398308,0.00015907,2]
[400946501,1767868250248,-405.97906318,0.00011143,2]
[400946686,1767868252128,-200.0,0.00011143,2]
[400947002,1767868255668,-288.11984291,0.00011099,2]
[400947024,1767868257079,-152.90274074,0.00011099,2]
[400947025,1767868258548,-322.16513308,0.00011099,2]
[400947026,1767868260697,-452.27880143,0.00011099,2]
[400947027,1767868260968,10000.01,0.00011085,2]
[400947028,1767868263366,-257.47850945,0.00011085,2]
[400947029,1767868265433,-210.73445015,0.00011085,2]
[400947030,1767868269501,-303.91570653,0.00011085,2]
[400947031,1767868272031,-325.26576385,0.00011085,2]
[400947032,1767868272936,-10000.01,0.00011085,2]
[400947033,1767868274104,-168.55203038,0.00011085,2]
[400947034,1767868278728,441.36184595,0.0001091,2]
[400947035,1767868278754,58.63815405,0.0001091,2]
[400947036,1767868278841,104.90632292,0.0001091,2]
[400947037,1767868278866,45.09367708,0.0001091,2]
[400947038,1767868278962,500.0,0.00010965,2]
[400947039,1767868279065,150.0,0.00010965,2]
[400947040,1767868279360,-322.14330526,0.0001102,2]
[400947041,1767868279384,-176.87841164,0.0001102,2]
[400947042,1767868280851,231.03492311,0.0001091,2]
[400947043,1767868280882,-23.12158836,0.0001102,2]
[400947044,1767868280907,-280.60972387,0.00011085,2]
[400947045,1767868283665,-250.0,0.00011085,2]
[400947046,1767868285361,-282.7774489,0.00011085,2]
[400947047,1767868287440,-155.62838882,0.00010998,2]
[400947048,1767868287466,-18.92364156,0.00011085,2]
[400947049,1767868290179,-155.62838882,0.00010992,2]
[400947050,1767868290205,-125.64891197,0.00011085,2]
[400947051,1767868292035,-292.83246587,0.00011085,2]
[400947052,1767868293466,1882.61630721,0.00010863,2]
[400947053,1767868293490,2741.47769279,0.00010863,2]
[400947054,1767868293531,309.721,0.00010863,2]
[400947055,1767868294219,-500.0,0.00011085,2]
[400947056,1767868296782,-618.98128919,0.00011085,2]
[400947057,1767868299306,-157.47850945,0.00011085,2]
[400947058,1767868301905,-205.90101924,0.00011085,2]
[400947059,1767868303396,-250.0,0.00011085,2]
[400947060,1767868305287,-214.34140696,0.00011085,2]
[400947061,1767868312466,-230.60854268,0.00011085,2]
[400947063,1767868315987,-304.05195059,0.00011084,2]
[400947064,1767868317248,-191.90720398,0.00011084,2]
[400947065,1767868320792,-4.04084543,0.00011084,2]
[400947066,1767868320819,-157.3790828,0.00011084,2]
[400947067,1767868322289,-300.0,0.00011083,2]
[400947068,1767868322322,-342.6209172,0.00011084,2]
[400947069,1767868322359,-500.0,0.00011084,2]
[400947070,1767868322392,-500.0,0.00011084,2]
[400947071,1767868322429,-500.0,0.00011084,2]
[400947072,1767868322477,-500.0,0.00011084,2]
[400947073,1767868322508,-500.0,0.00011084,2]
[400947074,1767868322541,-500.0,0.00011084,2]
[400947075,1767868322572,-500.0,0.00011084,2]
[400947076,1767868322603,-500.0,0.00011084,2]
[400947077,1767868322633,-214.7681656,0.00011084,2]
[400947078,1767868322753,-188.929543,0.00011084,2]
[400947079,1767868322877,-96.3022914,0.00011084,2]
[400947080,1767868323348,-500.0,0.00011084,2]
[400947081,1767868323382,-500.0,0.00011084,2]
[400947082,1767868323416,-500.0,0.00011084,2]
[400947083,1767868323449,-500.0,0.00011084,2]
[400947084,1767868323479,-500.0,0.00011084,2]
[400947085,1767868323511,-500.0,0.00011084,2]
[400947086,1767868323543,-500.0,0.00011084,2]
[400947087,1767868323576,-500.0,0.00011084,2]
[400947088,1767868323609,-500.0,0.00011084,2]
[400947089,1767868323642,-307.4054172,0.00011084,2]
[400947090,1767868324069,-192.5945828,0.00011084,2]
[400947091,1767868324079,-307.4054172,0.00011084,2]
[400947092,1767868325551,-192.5945828,0.00011084,2]
[400947093,1767868325591,-500.0,0.00011084,2]
[400947094,1767868325631,-500.0,0.00011084,2]
[400947095,1767868325669,-500.0,0.00011084,2]
[400947096,1767868325701,-500.0,0.00011084,2]
[400947097,1767868325736,-349.66078689,0.00011084,2]
[400947098,1767868325769,-500.0,0.00011084,2]
[400947099,1767868325807,-500.0,0.00011084,2]
[400947100,1767868325841,-500.0,0.00011084,2]
[400947101,1767868325874,-500.0,0.00011084,2]
[400947102,1767868325906,-415.49926062,0.00011084,2]
[400947103,1767868326832,-84.50073938,0.00011084,2]
[400947104,1767868327966,-442.21273673,0.00011084,2]
[400947105,1767868328760,-57.78726327,0.00011084,2]
[400947106,1767868328794,-500.0,0.00011084,2]
[400947107,1767868328828,-500.0,0.00011084,2]
[400947108,1767868328861,-500.0,0.00011084,2]
[400947109,1767868328892,-500.0,0.00011084,2]
[400947110,1767868328925,-500.0,0.00011084,2]
[400947111,1767868328958,-500.0,0.00011084,2]
[400947112,1767868328991,-500.0,0.00011084,2]
[400947113,1767868329023,-500.0,0.00011084,2]
[400947114,1767868329057,-500.0,0.00011084,2]
[400947115,1767868329091,-384.43547346,0.00011084,2]
[400947116,1767868329384,-115.56452654,0.00011084,2]
[400947117,1767868329500,-188.86471918,0.00011084,2]
[400947118,1767868331938,-311.13528082,0.00011084,2]
[400947119,1767868331982,-500.0,0.00011084,2]
[400947120,1767868332015,-500.0,0.00011084,2]
[400947121,1767868332048,-500.0,0.00011084,2]
[400947122,1767868332175,-6377.73943836,0.00011084,2]
[400947123,1767868332293,-195.69246571,0.00011084,2]
[400947124,1767868333686,-200.0,0.00011084,2]
[400947125,1767868334081,-10000.01,0.00011084,2]
[400947126,1767868334445,-3932.24263298,0.00011084,2]
[400947127,1767868334475,-2135.52473404,0.00011084,2]
[400947128,1767868334643,-10000.01,0.00011085,2]
[400947129,1767868334834,-10000.01,0.00011085,2]
[400947130,1767868335089,-10000.01,0.00011085,2]
[400947131,1767868335229,-10000.01,0.00011085,2]
[400947132,1767868335320,-10000.01,0.00011085,2]
[400947133,1767868335434,-10000.01,0.00011085,2]
[400947134,1767868335568,-10000.01,0.00011085,2]
[400947135,1767868337526,-186.65484852,0.00011085,2]
[400947136,1767868340682,-192.52149055,0.00011085,2]
[400947137,1767868340922,-10000.01,0.00011085,2]
[400947138,1767868344287,-254.79681484,0.00011085,2]
[400947139,1767868346959,-10000.01,0.00011085,2]
[400947140,1767868347928,-10000.01,0.00011085,2]
[400947141,1767868348034,-293.25580285,0.00011085,2]
[400947142,1767868348234,-10000.01,0.00011085,2]
[400947143,1767868348258,-10000.01,0.00011085,2]
[400947144,1767868348290,-10000.01,0.00011085,2]
[400947145,1767868348308,-10000.01,0.00011085,2]
[400947146,1767868348323,-10000.01,0.00011085,2]
[400947147,1767868348412,-10000.01,0.00011085,2]
[400947148,1767868348538,-10000.01,0.00011085,2]
[400947149,1767868349038,-300.0,0.00011085,2]
[400947150,1767868351125,-252.70396908,0.00011085,2]
[400947151,1767868352621,-275.79732422,0.00011085,2]
[400947152,1767868354700,-310.10312473,0.00011085,2]
[400947153,1767868355570,-1000.0,0.00011085,2]
[400947154,1767868357494,-250.0,0.00011085,2]
[400947155,1767868373026,-315.92294073,0.00010992,2]
[400947156,1767868376843,-188.78198456,0.00010992,2]
[400947157,1767868376868,-111.21801544,0.00011085,2]
[400947158,1767868378359,-242.10266155,0.00011085,2]
[400947159,1767868381263,-305.52403129,0.00011085,2]
[400947160,1767868382795,-300.0,0.00011084,2]
[400947161,1767868382816,-5.6613102,0.00011084,2]
[400947166,1767868384282,750.332204,0.00010937,2]
[400947169,1767868385252,-163.53488248,0.00011084,2]
[400947170,1767868385272,-40.89023464,0.00011084,2]
[400947177,1767868388908,-253.44845516,0.00011084,2]
[400947178,1767868388931,-103.21339626,0.00011084,2]
[400947179,1767868390881,-301.88640204,0.00011042,2]
[400947180,1767868392872,-198.11359796,0.00011042,2]
[400947181,1767868392894,-46.78660374,0.00011084,2]
[400947182,1767868392914,-158.0,0.00011084,2]
[400947183,1767868392938,-714.20407709,0.00011085,2]
[400947184,1767868397488,-211.87054949,0.00011084,2]
[400947186,1767868400363,-205.92016426,0.00011084,2]
[400947187,1767868402768,-431.01531836,0.00011084,2]
[400947188,1767868402791,-48.41100921,0.00011084,2]
[400947189,1767868405903,-316.66,0.00011084,2]
[400947190,1767868406439,-623.0584413,0.00011084,2]
[400947191,1767868408267,-300.0,0.00011085,2]
[400947196,1767868410104,-187.54007036,0.00011085,2]
[400947197,1767868413073,-451.02208221,0.00011085,2]
[400947198,1767868416575,-247.0,0.00011085,2]
[400947199,1767868418479,-303.05554958,0.00011085,2]
[400947200,1767868421314,-168.91999983,0.00011085,2]
[400947201,1767868424733,-211.34,0.00011085,2]
[400947202,1767868428756,-152.90274,0.00011085,2]
[400947203,1767868430275,-226.05225167,0.00011085,2]
[400947204,1767868432299,-166.66,0.00011085,2]
[400947205,1767868436817,-372.34501122,0.00011085,2]
[400947207,1767868445248,153.40791695,0.00010992,2]
[400947208,1767868448022,-177.00021117,0.00011085,2]
[400947209,1767868453778,-200.0,0.00011085,2]
[400947210,1767868455661,-300.0,0.00011085,2]
[400947211,1767868457432,-281.5853752,0.00011085,2]
[400947212,1767868460967,-583.05402309,0.00011085,2]
[400947213,1767868463848,-218.2465622,0.00011085,2]
[400947214,1767868466319,-255.0,0.00011085,2]
[400947215,1767868468964,-282.09576913,0.00011085,2]
[400947216,1767868471750,-356.74382834,0.00011085,2]
[400947217,1767868474542,-254.35832743,0.00011085,2]
[400947218,1767868475283,-1376.945,0.00011085,2]
[400947219,1767868476943,-200.0,0.00010992,2]
[400947221,1767868479983,-289.20930786,0.00010992,2]
[400947222,1767868480013,-97.60516516,0.00011085,2]
[400947223,1767868483294,-276.73143042,0.00011085,2]
[400947224,1767868484828,-300.0,0.00011085,2]
[400947225,1767868487214,-181.83775549,0.00011085,2]
[400947231,1767868488667,-263.2098759,0.00011085,2]
[400947232,1767868491380,-406.03393071,0.00011085,2]
[400947235,1767868493605,-181.83775549,0.00011085,2]
[400947236,1767868495194,-407.47958521,0.00011085,2]
[400947240,1767868506498,208.0,9.989e-05,2]
[400947241,1767868506778,208.0,9.989e-05,2]
[400947242,1767868508596,-250.0,0.00011084,2]
[400947244,1767868510736,-50.0,0.00011084,2]
[400947246,1767868510760,-221.1910972,0.00011084,2]
[400947247,1767868512704,-195.0,0.00011084,2]
[400947248,1767868515970,-318.16224451,0.00011084,2]
[400947249,1767868517860,2500.0,0.00015,3]
[400947250,1767868519220,-249.60024016,0.00011084,2]
[400947251,1767868520582,-216.04641813,0.00011084,2]
[400947252,1767868520603,-300.0,0.00011084,2]
[400947253,1767868520625,-49.36860746,0.00011084,2]
[400947254,1767868522986,-206.13,0.00011084,2]
[400947334,1767868600378,1049.68283006,0.00010985,2]
[400947335,1767868601456,-763.85,0.00010985,2]
[400947336,1767868604733,-171.44717806,0.00010985,2]
[400947337,1767868606177,-285.78464783,0.00010985,2]
[400947339,1767868629164,-229.23534405,0.00010985,2]
[400947340,1767868629188,-70.76465595,0.00010985,2]
[400947341,1767868630549,-124.23534405,0.00010985,2]
[400947342,1767868630571,-179.14065081,0.00010985,2]
[400947343,1767868632117,-28.71810497,0.00010985,2]
[400947344,1767868632138,-182.13039526,0.00010985,2]
[400947421,1767868673096,-25.72836052,0.00010985,2]
[400947422,1767868673119,-252.88906652,0.00010985,2]
[400947437,1767868731963,5267.21372685,0.00010847,2]
[400947438,1767868731986,5267.21372685,0.00010847,2]
[400947439,1767868732009,5267.21372685,0.00010847,2]
[400947440,1767868732032,5267.21372685,0.00010847,2]
[400947441,1767868732055,5267.21372685,0.00010847,2]
[400947446,1767868748113,-300.0,0.00010846,2]
[400947447,1767868748138,-60.34583662,0.00010846,2]
[400947448,1767868756670,-154.44444899,0.00010846,2]
[400947449,1767868761412,-85.20971439,0.00010846,2]
[400947450,1767868761434,-130.52804702,0.00010847,2]
[400947452,1767868765388,-212.85233046,0.00010847,2]
[400947455,1767868766336,-349.62305256,0.00010847,2]
[400947459,1767868767610,-10000.01,0.00010847,2]
[400947460,1767868767841,-10000.01,0.00010847,2]
[400947464,1767868779942,-643.37793571,0.00010847,2]
[400947465,1767868779972,-2441.02902858,0.00010985,2]
[400947466,1767868780010,-3831.19607142,0.00010985,2]
[400947467,1767868780074,-2500.0,0.00010985,2]
[400947468,1767868780102,-292.48873088,0.00010985,2]
[400947469,1767868780130,-292.48873088,0.00010985,2]
[400947470,1767868780158,-300.0,0.00011032,2]
[400947471,1767868780186,-350.0,0.00011063,2]
[400947472,1767868780214,-1200.0,0.00011077,2]
[400947473,1767868780325,-130.05507648,0.00011077,2]
[400947493,1767868947653,-3699.276,0.00010863,2]
[400947494,1767868947681,-247.777,0.00010863,2]
[400947495,1767868947710,-195.0,0.00010965,2]
[400947496,1767868947743,-150.0,0.00010984,2]
[400947497,1767868947967,-1415.904,0.00010985,2]
[400947498,1767868952820,-10000.01,0.00010985,2]
[400947499,1767868958636,-236.56706919,0.00010543,2]
[400947500,1767868960299,-386.72691613,0.00010543,2]
[400947501,1767868964593,-402.64048418,0.00010543,2]
[400947502,1767868969195,-300.0,0.00010543,2]
[400947503,1767868970533,-237.39152519,0.00010543,2]
[400947509,1767868987544,-419.28007477,0.00010494,2]
[400947514,1767868995685,-300.0,0.00010493,2]
[400947515,1767868997772,-204.30929403,0.00010493,2]
[400947516,1767869001402,-364.95035467,0.00010493,2]
[400947517,1767869004957,-247.2815383,0.00010493,2]
[400947518,1767869006530,-83.458813,0.00010493,2]
[400947519,1767869006555,-106.37733786,0.00010494,2]
[400947520,1767869008078,-164.48363446,0.00010494,2]
[400947521,1767869011914,-238.86021468,0.00010494,2]
[400947522,1767869015682,-237.1398076,0.00010494,2]
[400947523,1767869018252,-371.5206369,0.00010494,2]
[400947524,1767869020006,-195.9587262,0.00010494,2]
[400947525,1767869022569,-250.0,0.00010494,2]
[400947526,1767869024554,-320.5206369,0.00010494,2]
[400947527,1767869028639,-236.4619342,0.00010494,2]
[400947529,1767869031146,-168.42467707,0.00010494,2]
[400947530,1767869035044,-253.39799004,0.00010494,2]
[400947531,1767869037618,999.0,0.00010959,3]
[400947532,1767869037645,-482.80396995,0.00010494,2]
[400947533,1767869041598,-186.26906812,0.00010494,2]
[400947534,1767869043884,-383.42390206,0.00010494,2]
[400947535,1767869045183,-156.09199774,0.00010494,2]
[400947536,1767869047244,-220.47777362,0.00010494,2]
[400947537,1767869049564,-483.25715026,0.00010494,2]
[400947538,1767869051518,-197.03465754,0.00010494,2]
[400947540,1767869054795,-350.14123088,0.00010494,2]
[400947541,1767869057970,-335.43011642,0.00010494,2]
[400947543,1767869060359,-159.49801717,0.00010494,2]
[400947544,1767869062997,-194.53560518,0.00010494,2]
[400947545,1767869066110,-500.0,0.00010494,2]
[400947546,1767869068322,-193.85876912,0.00010494,2]
[400947547,1767869069855,-571.73317284,0.00010494,2]
[400947548,1767869074860,-351.54260527,0.00010494,2]
[400947551,1767869077061,-607.0854496,0.00010494,2]
[400947552,1767869079610,-360.97001036,0.00010494,2]
[400947553,1767869082154,-286.28848714,0.00010494,2]
[400947554,1767869083691,-300.0,0.00010494,2]
[400947555,1767869087364,-157.70047119,0.00010494,2]
[400947556,1767869089154,-540.00131542,0.00010494,2]
[400947557,1767869091778,-526.3855839,0.00010494,2]
[400947558,1767869095505,-305.02621265,0.00010494,2]
[400947559,1767869098423,-215.56679287,0.00010494,2]
[400947560,1767869099873,-161.34487945,0.00010494,2]
[400947561,1767869101871,-321.13614272,0.00010494,2]
[400947562,1767869109097,-243.38853713,0.00010494,2]
[400947563,1767869111148,-501.08006467,0.00010494,2]
[400947564,1767869112667,-220.3414027,0.00010494,2]
[400947565,1767869114708,-185.82094335,0.00010494,2]
[400947566,1767869114731,-116.17905665,0.00010519,2]
[400947567,1767869117463,-88.13023738,0.00010519,2]
[400947568,1767869117486,-90.13061799,0.00010543,2]
[400947569,1767869120188,-198.96338732,0.00010543,2]
[400947570,1767869120220,-326.66088956,0.00010983,2]
[400947571,1767869120251,-551.34120337,0.00010983,2]
[400947572,1767869120282,-296.83244217,0.00010983,2]
[400947573,1767869120313,-500.0,0.00010983,2]
[400947574,1767869120728,-500.0,0.00010983,2]
[400947575,1767869120780,-500.0,0.00010983,2]
[400947576,1767869120809,-571.02617945,0.00010983,2]
[400947577,1767869120838,-186.26906812,0.00010983,2]
[400947578,1767869120872,-500.0,0.00010983,2]
[400947579,1767869120904,-500.0,0.00010983,2]
[400947580,1767869120936,-237.82366002,0.00010983,2]
[400947581,1767869121101,-262.17633998,0.00010983,2]
[400947582,1767869121132,-500.0,0.00010983,2]
[400947583,1767869121164,-500.0,0.00010983,2]
[400947584,1767869121196,-500.0,0.00010983,2]
[400947585,1767869121228,-500.0,0.00010983,2]
[400947586,1767869121260,-500.0,0.00010983,2]
[400947587,1767869121291,-500.0,0.00010983,2]
[400947588,1767869121322,-500.0,0.00010983,2]
[400947589,1767869121354,-500.0,0.00010983,2]
[400947590,1767869121385,-500.0,0.00010983,2]
[400947591,1767869121892,-262.17633998,0.00010983,2]
[400947592,1767869121944,-237.82366002,0.00010983,2]
[400947593,1767869121954,-237.83366002,0.00010983,2]
[400947594,1767869130084,-262.16633998,0.00010983,2]
[400947595,1767869130116,-500.0,0.00010983,2]
[400947596,1767869130148,-500.0,0.00010983,2]
[400947597,1767869130179,-500.0,0.00010983,2]
[400947598,1767869130210,-500.0,0.00010983,2]
[400947599,1767869130240,-500.0,0.00010983,2]
[400947600,1767869130271,-500.0,0.00010983,2]
[400947601,1767869130302,-500.0,0.00010983,2]
[400947602,1767869130333,-500.0,0.00010983,2]
[400947603,1767869130365,-500.0,0.00010983,2]
[400947604,1767869130833,-475.67732004,0.00010983,2]
[400947605,1767869132911,-24.32267996,0.00010983,2]
[400947606,1767869132943,-500.0,0.00010983,2]
[400947607,1767869132973,-500.0,0.00010983,2]
[400947608,1767869133004,-500.0,0.00010983,2]
[400947609,1767869133035,-500.0,0.00010983,2]
[400947610,1767869133066,-500.0,0.00010983,2]
[400947611,1767869133098,-500.0,0.00010983,2]
[400947612,1767869133129,-500.0,0.00010983,2]
[400947613,1767869133160,-500.0,0.00010983,2]
[400947614,1767869133191,-500.0,0.00010983,2]
[400947615,1767869133222,-451.36464008,0.00010983,2]
[400947616,1767869133429,-48.63535992,0.00010983,2]
[400947679,1767869279878,-300.0,0.00010981,2]
[400947681,1767869279908,-195.0,0.00010981,2]
[400947683,1767869279936,-250.0,0.00010981,2]
[400947684,1767869279965,-228.6626227,0.00010982,2]
[400947685,1767869279994,-207.78270952,0.00010982,2]
[400947686,1767869280021,-385.93884236,0.00010982,2]
[400947687,1767869280053,-500.0,0.00010982,2]
[400947688,1767869280081,-500.0,0.00010982,2]
[400947689,1767869280111,-449.71832561,0.00010982,2]
[400947690,1767869280143,-500.0,0.00010982,2]
[400947691,1767869280176,-500.0,0.00010982,2]
[400947692,1767869280208,-500.0,0.00010982,2]
[400947693,1767869280240,-465.80499962,0.00010982,2]
[400947694,1767869281322,-34.19500038,0.00010982,2]
[400947695,1767869281356,-500.0,0.00010982,2]
[400947696,1767869281386,-500.0,0.00010982,2]
[400947697,1767869281418,-500.0,0.00010982,2]
[400947698,1767869281447,-500.0,0.00010982,2]
[400947699,1767869281476,-500.0,0.00010982,2]
[400947700,1767869281506,-500.0,0.00010982,2]
[400947701,1767869281537,-277.97006451,0.00010982,2]
[400947702,1767869281567,-500.0,0.00010982,2]
[400947703,1767869281598,-500.0,0.00010982,2]
[400947704,1767869281628,-500.0,0.00010982,2]
[400947705,1767869281932,-500.0,0.00010982,2]
[400947706,1767869281963,-500.0,0.00010982,2]
[400947707,1767869281993,-500.0,0.00010982,2]
[400947708,1767869282023,-500.0,0.00010982,2]
[400947709,1767869282053,-500.0,0.00010982,2]
[400947710,1767869282082,-500.0,0.00010982,2]
[400947711,1767869282112,-500.0,0.00010982,2]
[400947712,1767869282141,-500.0,0.00010982,2]
[400947713,1767869282172,-500.0,0.00010982,2]
[400947714,1767869282202,-500.0,0.00010982,2]
[400947715,1767869282338,-500.0,0.00010982,2]
[400947716,1767869282371,-500.0,0.00010982,2]
[400947717,1767869282402,-929.46406804,0.00010982,2]
[400947718,1767869282433,-929.46406804,0.00010982,2]
[400947719,1767869282463,-929.46406804,0.00010982,2]